fUST/lending_fUST_20250210
["ID","MTS","AMOUNT","RATE_DAILY","PERIOD"]
[352564790,1739170252985,-151.0,0.00013699,2]
[352564791,1739170252996,-154.051216,0.00013699,2]
[352564792,1739170253006,-151.0,0.00013699,2]
[352564793,1739170253015,-159.551986,0.00013699,2]
[352564794,1739170253025,-151.0,0.00013699,2]
[352564795,1739170253035,-151.0,0.00013699,2]
[352564796,1739170253045,-151.0,0.00013699,2]
[352564797,1739170253055,-151.481,0.00013699,2]
[352564798,1739170253064,-500.0,0.0001372,2]
[352564799,1739170253074,-500.0,0.0001372,2]
[352564800,1739170253084,-500.0,0.0001372,2]
[352564801,1739170253095,-500.0,0.0001372,2]
[352564802,1739170253106,-500.0,0.0001372,2]
[352564803,1739170253116,-500.0,0.0001372,2]
[352564804,1739170253125,-500.0,0.0001372,2]
[352564805,1739170253135,-151.0,0.000138,2]
[352564806,1739170253144,-487.406,0.00013835,2]
[352564807,1739170253154,-524.81,0.00013835,2]
[352564808,1739170253163,-669.47,0.00013835,2]
[352564809,1739170253174,-1267.99,0.00013835,2]
[352564810,1739170253184,-1598.9,0.00013835,2]
[352564811,1739170253194,-755.08,0.00013835,2]
[352564812,1739170253203,-5415.67,0.00013835,2]
[352564813,1739170253213,-644.14,0.00013835,2]
[352564814,1739170253223,-500.0,0.00013835,2]
[352564815,1739170253233,-886.77,0.00013835,2]
[352564816,1739170253243,-11218.02,0.00013835,2]
[352564817,1739170253257,-7404.08,0.00013835,2]
[352564818,1739170253267,-500.0,0.00013835,2]
[352564819,1739170253277,-892.13,0.00013835,2]
[352564820,1739170253287,-529.56,0.00013835,2]
[352564821,1739170253298,-1011.57,0.00013835,2]
[352564822,1739170253308,-256.12,0.00013835,2]
[352564823,1739170253317,-1102.03,0.00013835,2]
[352564824,1739170253327,-2698.32,0.00013835,2]
[352564825,1739170253338,-1269.95,0.00013835,2]
[352564826,1739170253348,-1453.1,0.00013835,2]
[352564827,1739170253358,-1048.08,0.00013835,2]
[352564828,1739170253368,-165.26543922,0.00013872,2]
[352564829,1739170253378,-165.26543922,0.00013872,2]
[352564830,1739170253388,-165.26,0.00013872,2]
[352564831,1739170253398,-216.0,0.000139,2]
[352564832,1739170253408,-220.73968215,0.000139,2]
[352564833,1739170253418,-524.81,0.00013972,2]
[352564834,1739170253427,-669.47,0.00013972,2]
[352564835,1739170253437,-151.0,0.00013972,2]
[352564836,1739170253446,-332.739286,0.00013972,2]
[352564837,1739170253457,-332.739286,0.00013972,2]
[352564838,1739170253466,-151.0,0.00013972,2]
[352564839,1739170253477,-151.538454,0.00013972,2]
[352564840,1739170253487,-1267.99,0.00013972,2]
[352564841,1739170253497,-1598.9,0.00013972,2]
[352564842,1739170253506,-755.08,0.00013972,2]
[352564843,1739170253516,-5415.67,0.00013972,2]
[352564844,1739170253526,-644.14,0.00013972,2]
[352564845,1739170253536,-500.0,0.00013972,2]
[352564846,1739170253546,-886.77,0.00013972,2]
[352564847,1739170253556,-11218.02,0.00013972,2]
[352564848,1739170253566,-7404.08,0.00013972,2]
[352564849,1739170253576,-544.13,0.00013972,2]
[352564850,1739170253587,-892.13,0.00013972,2]
[352564851,1739170253598,-529.56,0.00013972,2]
[352564852,1739170253607,-1011.57,0.00013972,2]
[352564853,1739170253618,-1102.03,0.00013972,2]
[352564854,1739170253627,-2698.32,0.00013972,2]
[352564855,1739170253638,-1269.95,0.00013972,2]
[352564856,1739170253744,-1453.1,0.00013972,2]
[352564857,1739170253753,-1048.08,0.00013972,2]
[352564858,1739170253763,-196.37268634,0.00013985,2]
[352564859,1739170253773,-451.0,0.00014,4]
[352564860,1739170253782,-2145.97,0.000141,2]
[352564861,1739170253792,-524.92,0.00014109,2]
[352564862,1739170253801,-152.023136,0.00014109,2]
[352564863,1739170253811,-669.59,0.00014109,2]
[352564864,1739170253820,-452.678732,0.00014109,2]
[352564865,1739170253830,-452.678732,0.00014109,2]
[352564866,1739170253840,-1268.1779993,0.00014109,2]
[352564867,1739170253851,-1598.98943141,0.00014109,2]
[352564868,1739170253861,-755.16,0.00014109,2]
[352564869,1739170253871,-5415.80044657,0.00014109,2]
[352564870,1739170253880,-644.29854722,0.00014109,2]
[352564871,1739170253890,-403.73,0.00014109,2]
[352564872,1739170253899,-886.995,0.00014109,2]
[352564873,1739170253909,-11218.0873,0.00014109,2]
[352564874,1739170253919,-7404.25,0.00014109,2]
[352564875,1739170253928,-892.14559758,0.00014109,2]
[352564876,1739170253938,-529.62,0.00014109,2]
[352564877,1739170253947,-1011.76578792,0.00014109,2]
[352564878,1739170253957,-1102.17201855,0.00014109,2]
[352564879,1739170253966,-2698.35586109,0.00014109,2]
[352564880,1739170253976,-1270.0999499,0.00014109,2]
[352564881,1739170253985,-1453.16065621,0.00014109,2]
[352564882,1739170253995,-1048.08,0.00014109,2]
[352564883,1739170254004,-151.0,0.000142,2]
[352564884,1739170254014,-683.62653941,0.00014247,2]
[352564885,1739170254023,-1000.0,0.00014268,2]
[352564886,1739170254032,-984.10245036,0.00014268,2]
[352564887,1739170254042,-941.60310189,0.00014268,2]
[352564888,1739170254058,-58.39689811,0.00014268,2]
[352564889,1739170254068,-858.00077724,0.00014268,2]
[352564890,1739170254080,-141.99922276,0.00014268,2]
[352564891,1739170254090,-1000.0,0.00014268,2]
[352564892,1739170254100,-196.37268634,0.00014371,2]
[352564893,1739170254109,-871.16304481,0.00014419,2]
[352564894,1739170254119,-871.16304481,0.00014519,2]
[352564895,1739170254128,-151.0,0.000146,2]
[352564896,1739170254138,-871.16304481,0.00014619,2]
[352564897,1739170254147,-150.0,0.00014633,2]
[352564898,1739170254155,-291.329,0.00014633,2]
[352564899,1739170254165,-2295.0,0.00014633,2]
[352564900,1739170254174,-183.365,0.00014633,2]
[352564901,1739170254183,-153.262,0.00014633,2]
[352564902,1739170254192,-396.0,0.00014633,2]
[352564903,1739170254202,-871.16304481,0.00014719,2]
[352564904,1739170254212,-500.0,0.00014755,2]
[352564905,1739170254221,-196.37268634,0.00014757,2]
[352564906,1739170254230,-871.16304481,0.00014819,2]
[352564907,1739170254240,-871.16304481,0.00014919,2]
[352564908,1739170254253,-67633.383176,0.00015,2]
[352564909,1739170254265,-1763.36431776,0.00015,2]
[352564910,1739170254404,-19.29041423,0.00013013,2]
[352564911,1739170254629,-131.70958577,0.00013013,2]
[352564912,1739170254638,-151.0,0.00013699,2]
[352564913,1739170254647,-150.0,0.00014633,2]
[352564914,1739170254657,-556.64241423,0.00015,2]
[352564921,1739171158212,-1175.77707494,9.412e-05,2]
[352564922,1739171214307,-176.44026546,9.412e-05,2]
[352564923,1739171227094,-553.12781908,9.412e-05,2]
[352564924,1739171241122,-2396.70276862,9.412e-05,2]
[352564925,1739171244087,-697.9520719,9.412e-05,2]
[352564926,1739171244108,-537.9351735,9.507e-05,2]
[352564927,1739171244130,-300.0,9.707e-05,2]
[352564928,1739171244151,-3476.75204862,9.708e-05,2]
[352564931,1739171346211,-2641.30285976,9.611e-05,2]
[352564932,1739171346235,-300.0,9.707e-05,2]
[352564933,1739171346258,-11910.89910408,9.708e-05,2]
[352564934,1739171346280,-231.7452226,0.0001006,2]
[352564935,1739171346302,-1200.0,0.00010141,2]
[352564936,1739171346324,-7438.69753278,0.00010496,2]
[352564937,1739171346347,-1440.09618294,0.00010598,2]
[352564938,1739171346370,-178.91529564,0.00010678,2]
[352564939,1739171351097,-137.08470436,0.00010678,2]
[352564940,1739171351120,-400.0,0.00010685,2]
[352564941,1739171351311,-22.66604039,0.00010958,2]
[352564970,1739171432864,-477.33395961,0.00010958,2]
[352564971,1739171432874,-271.53084674,0.00010958,2]
[352564972,1739171432884,-500.0,0.00010958,2]
[352564973,1739171432894,-500.0,0.00010958,2]
[352564974,1739171432903,-500.0,0.00010958,2]
[352564975,1739171432912,-500.0,0.00010958,2]
[352564976,1739171432921,-500.0,0.00010958,2]
[352564977,1739171432933,-342.64521233,0.00010958,2]
[352564978,1739171432945,-500.0,0.00010958,2]
[352564979,1739171432954,-500.0,0.00010958,2]
[352564980,1739171432964,-500.0,0.00010958,2]
[352564981,1739171432973,-500.0,0.00010958,2]
[352564982,1739171432983,-500.0,0.00010958,2]
[352564983,1739171432992,-500.0,0.00010958,2]
[352564984,1739171433001,-500.0,0.00010958,2]
[352564986,1739171433011,-500.0,0.00010958,2]
[352564988,1739171433021,-500.0,0.00010958,2]
[352564990,1739171433031,-235.88575709,0.00010958,2]
[352564992,1739171433043,-264.11424291,0.00010958,2]
[352564994,1739171433053,-500.0,0.00010958,2]
[352564995,1739171433063,-504.5404039,0.00010958,2]
[352564996,1739171433073,-500.0,0.00010958,2]
[352564997,1739171433082,-185.73535319,0.00010958,2]
[352565000,1739171433095,-314.26464681,0.00010958,2]
[352565001,1739171433105,-395.90915321,0.00010958,2]
[352565002,1739171433117,-104.09084679,0.00010958,2]
[352565003,1739171433127,-500.0,0.00010958,2]
[352565004,1739171433137,-500.0,0.00010958,2]
[352565005,1739171433147,-500.0,0.00010958,2]
[352565006,1739171433157,-500.0,0.00010958,2]
[352565007,1739171433166,-500.0,0.00010958,2]
[352565008,1739171433176,-500.0,0.00010958,2]
[352565009,1739171433192,-500.0,0.00010958,2]
[352565010,1739171433202,-251.48381772,0.00010958,2]
[352565011,1739171433211,-279.66471103,0.00010958,2]
[352565012,1739171433228,-220.33528897,0.00010958,2]
[352565013,1739171433237,-242.90481103,0.00010958,2]
[352565014,1739171433256,-1137.26518897,0.00010958,2]
[352565015,1739171433266,-500.0,0.00010958,2]
[352565016,1739171433277,-500.0,0.00010958,2]
[352565017,1739171433286,-569.71,0.00010958,2]
[352565018,1739171433296,-3480.23475697,0.00010958,2]
[352565064,1739171438813,-1556.64524303,0.00010958,2]
[352565066,1739171438822,-500.0,0.00010958,2]
[352565067,1739171438831,-500.0,0.00010958,2]
[352565069,1739171438840,-500.0,0.00010958,2]
[352565071,1739171438849,-500.0,0.00010958,2]
[352565073,1739171438859,-500.0,0.00010958,2]
[352565074,1739171438868,-500.0,0.00010958,2]
[352565075,1739171438877,-750.28,0.00010958,2]
[352565076,1739171438886,-500.0,0.00010958,2]
[352565077,1739171438895,-500.0,0.00010958,2]
[352565078,1739171438904,-500.0,0.00010958,2]
[352565079,1739171438913,-500.0,0.00010958,2]
[352565080,1739171438922,-2056.79,0.00010958,2]
[352565081,1739171438931,-500.0,0.00010958,2]
[352565082,1739171438941,-500.0,0.00010958,2]
[352565083,1739171438951,-3088.79,0.00010958,2]
[352565084,1739171438960,-500.0,0.00010958,2]
[352565085,1739171438969,-500.0,0.00010958,2]
[352565086,1739171438979,-500.0,0.00010958,2]
[352565087,1739171438988,-500.0,0.00010958,2]
[352565088,1739171438998,-500.0,0.00010958,2]
[352565089,1739171439008,-500.0,0.00010958,2]
[352565090,1739171439018,-500.0,0.00010958,2]
[352565091,1739171439027,-631.93764054,0.00010958,2]
[352565092,1739171439036,-265.01161138,0.00010958,2]
[352565093,1739171439045,-500.0,0.00010958,2]
[352565094,1739171439054,-500.0,0.00010958,2]
[352565095,1739171439063,-500.0,0.00010958,2]
[352565096,1739171439072,-500.0,0.00010958,2]
[352565097,1739171439082,-511.08,0.00010958,2]
[352565098,1739171439091,-500.0,0.00010958,2]
[352565099,1739171439101,-500.0,0.00010958,2]
[352565100,1739171439110,-500.0,0.00010958,2]
[352565101,1739171439120,-500.0,0.00010958,2]
[352565102,1739171439129,-500.0,0.00010958,2]
[352565103,1739171439138,-500.0,0.00010958,2]
[352565104,1739171439147,-500.0,0.00010958,2]
[352565105,1739171439156,-500.0,0.00010958,2]
[352565106,1739171439165,-622.98,0.00010958,2]
[352565107,1739171439174,-500.0,0.00010958,2]
[352565108,1739171439183,-500.0,0.00010958,2]
[352565109,1739171439193,-500.0,0.00010958,2]
[352565110,1739171439203,-500.0,0.00010958,2]
[352565111,1739171439212,-500.0,0.00010958,2]
[352565112,1739171439222,-710.23,0.00010958,2]
[352565113,1739171439231,-500.0,0.00010958,2]
[352565114,1739171439241,-500.0,0.00010958,2]
[352565115,1739171439251,-674.73,0.00010958,2]
[352565116,1739171439260,-315.35780795,0.00010958,2]
[352565117,1739171439269,-500.0,0.00010958,2]
[352565118,1739171439280,-701.2,0.00010958,2]
[352565119,1739171439290,-500.0,0.00010958,2]
[352565120,1739171439301,-1997.24,0.00010958,2]
[352565121,1739171439310,-500.0,0.00011094,2]
[352565122,1739171439320,-279.24608152,0.00011094,2]
[352565123,1739171439330,-384.19655715,0.00011094,2]
[352565124,1739171439339,-500.0,0.00011095,2]
[352565125,1739171439349,-500.0,0.00011095,2]
[352565126,1739171439359,-500.0,0.00011095,2]
[352565127,1739171439369,-500.0,0.00011095,2]
[352565128,1739171439378,-500.0,0.00011095,2]
[352565129,1739171439388,-392.36085054,0.00011095,2]
[352565130,1739171439398,-500.0,0.00011095,2]
[352565131,1739171439408,-500.0,0.00011095,2]
[352565132,1739171439418,-500.0,0.00011095,2]
[352565133,1739171439428,-500.0,0.00011095,2]
[352565134,1739171439438,-500.0,0.00011095,2]
[352565135,1739171439448,-500.0,0.00011095,2]
[352565136,1739171439458,-500.0,0.00011095,2]
[352565137,1739171439469,-500.0,0.00011095,2]
[352565138,1739171439481,-500.0,0.00011095,2]
[352565139,1739171439491,-500.0,0.00011095,2]
[352565140,1739171439501,-500.0,0.00011095,2]
[352565141,1739171439511,-500.0,0.00011095,2]
[352565142,1739171439521,-506.65904746,0.00011095,2]
[352565143,1739171439533,-500.0,0.00011095,2]
[352565144,1739171439542,-646.69536164,0.00011095,2]
[352565145,1739171439552,-500.0,0.00011095,2]
[352565146,1739171439562,-500.0,0.00011095,2]
[352565147,1739171439571,-569.71,0.00011095,2]
[352565148,1739171439581,-5036.88,0.00011095,2]
[352565149,1739171439591,-500.0,0.00011095,2]
[352565150,1739171439600,-500.0,0.00011095,2]
[352565151,1739171439731,-500.0,0.00011095,2]
[352565152,1739171439741,-500.0,0.00011095,2]
[352565153,1739171439752,-500.0,0.00011095,2]
[352565154,1739171439762,-750.28,0.00011095,2]
[352565155,1739171439772,-500.0,0.00011095,2]
[352565156,1739171439785,-500.0,0.00011095,2]
[352565157,1739171439795,-500.0,0.00011095,2]
[352565158,1739171439805,-2056.79,0.00011095,2]
[352565159,1739171439816,-500.0,0.00011095,2]
[352565160,1739171439826,-500.0,0.00011095,2]
[352565161,1739171439835,-3088.79,0.00011095,2]
[352565162,1739171439845,-500.0,0.00011095,2]
[352565163,1739171439855,-500.0,0.00011095,2]
[352565164,1739171439864,-500.0,0.00011095,2]
[352565165,1739171439875,-500.0,0.00011095,2]
[352565166,1739171439884,-500.0,0.00011095,2]
[352565167,1739171439894,-500.0,0.00011095,2]
[352565168,1739171439904,-500.0,0.00011095,2]
[352565169,1739171439913,-500.0,0.00011095,2]
[352565170,1739171439923,-500.0,0.00011095,2]
[352565171,1739171439932,-500.0,0.00011095,2]
[352565172,1739171439942,-500.0,0.00011095,2]
[352565173,1739171439951,-511.08,0.00011095,2]
[352565174,1739171439962,-500.0,0.00011095,2]
[352565175,1739171439971,-500.0,0.00011095,2]
[352565176,1739171439981,-500.0,0.00011095,2]
[352565177,1739171439991,-500.0,0.00011095,2]
[352565178,1739171440000,-500.0,0.00011095,2]
[352565179,1739171440011,-500.0,0.00011095,2]
[352565180,1739171440020,-500.0,0.00011095,2]
[352565181,1739171440032,-622.98,0.00011095,2]
[352565182,1739171440041,-500.0,0.00011095,2]
[352565183,1739171440051,-500.0,0.00011095,2]
[352565184,1739171440061,-198.97,0.00011095,2]
[352565185,1739171440071,-500.0,0.00011095,2]
[352565186,1739171440080,-505.75463293,0.00011095,2]
[352565188,1739171440091,-710.23,0.00011095,2]
[352565189,1739171440102,-500.0,0.00011095,2]
[352565191,1739171440112,-500.0,0.00011095,2]
[352565192,1739171440121,-674.73,0.00011095,2]
[352565193,1739171440131,-701.2,0.00011095,2]
[352565194,1739171440141,-500.0,0.00011095,2]
[352565195,1739171440151,-1997.24,0.00011095,2]
[352565196,1739171440161,-500.0,0.00011232,2]
[352565197,1739171440171,-500.0,0.00011232,2]
[352565198,1739171440181,-500.0,0.00011232,2]
[352565200,1739171440191,-500.0,0.00011232,2]
[352565202,1739171440200,-500.0,0.00011232,2]
[352565203,1739171440210,-500.0,0.00011232,2]
[352565204,1739171440220,-500.0,0.00011232,2]
[352565205,1739171440230,-500.0,0.00011232,2]
[352565206,1739171440239,-500.0,0.00011232,2]
[352565207,1739171440249,-500.0,0.00011232,2]
[352565208,1739171440259,-500.0,0.00011232,2]
[352565209,1739171440268,-500.0,0.00011232,2]
[352565211,1739171440278,-512.02998487,0.00011232,2]
[352565213,1739171440288,-500.0,0.00011232,2]
[352565215,1739171440298,-500.0,0.00011232,2]
[352565217,1739171440308,-569.71,0.00011232,2]
[352565218,1739171440318,-5036.88,0.00011232,2]
[352565221,1739171440327,-500.0,0.00011232,2]
[352565223,1739171440337,-500.0,0.00011232,2]
[352565225,1739171440347,-500.0,0.00011232,2]
[352565227,1739171440357,-500.0,0.00011232,2]
[352565229,1739171440366,-613.88,0.00011232,2]
[352565231,1739171440376,-750.28,0.00011232,2]
[352565233,1739171440386,-500.0,0.00011232,2]
[352565235,1739171440395,-500.0,0.00011232,2]
[352565237,1739171440405,-500.0,0.00011232,2]
[352565239,1739171440415,-2056.79,0.00011232,2]
[352565241,1739171440425,-500.0,0.00011232,2]
[352565243,1739171440435,-500.0,0.00011232,2]
[352565245,1739171440444,-3088.79,0.00011232,2]
[352565247,1739171440454,-500.0,0.00011232,2]
[352565249,1739171440463,-500.0,0.00011232,2]
[352565251,1739171440473,-500.0,0.00011232,2]
[352565253,1739171440482,-500.0,0.00011232,2]
[352565255,1739171440492,-514.74,0.00011232,2]
[352565257,1739171440501,-500.0,0.00011232,2]
[352565259,1739171440511,-500.0,0.00011232,2]
[352565261,1739171440520,-588.68,0.00011232,2]
[352565263,1739171440529,-500.0,0.00011232,2]
[352565265,1739171440538,-500.0,0.00011232,2]
[352565266,1739171440547,-500.0,0.00011232,2]
[352565269,1739171440557,-511.08,0.00011232,2]
[352565271,1739171440567,-500.0,0.00011232,2]
[352565273,1739171440576,-500.0,0.00011232,2]
[352565275,1739171440586,-500.0,0.00011232,2]
[352565277,1739171440595,-500.0,0.00011232,2]
[352565279,1739171440605,-500.0,0.00011232,2]
[352565281,1739171440614,-500.0,0.00011232,2]
[352565283,1739171440623,-622.98,0.00011232,2]
[352565285,1739171440633,-500.0,0.00011232,2]
[352565287,1739171440645,-500.0,0.00011232,2]
[352565289,1739171440655,-710.23,0.00011232,2]
[352565291,1739171440664,-510.16,0.00011232,2]
[352565293,1739171440673,-674.73,0.00011232,2]
[352565295,1739171440683,-701.2,0.00011232,2]
[352565297,1739171440693,-500.0,0.00011232,2]
[352565299,1739171440702,-1997.24,0.00011232,2]
[352565301,1739171440711,-608.63712056,0.00011369,2]
[352565303,1739171440723,-500.0,0.00011369,2]
[352565305,1739171440732,-500.0,0.00011369,2]
[352565307,1739171440742,-500.0,0.00011369,2]
[352565309,1739171440752,-500.0,0.00011369,2]
[352565311,1739171440761,-500.0,0.00011369,2]
[352565313,1739171440771,-500.0,0.00011369,2]
[352565315,1739171440781,-500.0,0.00011369,2]
[352565318,1739171440793,-500.0,0.00011369,2]
[352565320,1739171440803,-500.0,0.00011369,2]
[352565322,1739171440813,-569.71,0.00011369,2]
[352565324,1739171440823,-5036.88,0.00011369,2]
[352565326,1739171440832,-500.0,0.00011369,2]
[352565328,1739171440841,-500.0,0.00011369,2]
[352565330,1739171440850,-500.0,0.00011369,2]
[352565332,1739171440859,-500.0,0.00011369,2]
[352565334,1739171440868,-750.28,0.00011369,2]
[352565336,1739171440877,-500.0,0.00011369,2]
[352565338,1739171440887,-500.0,0.00011369,2]
[352565340,1739171440896,-500.0,0.00011369,2]
[352565342,1739171440905,-2056.79,0.00011369,2]
[352565344,1739171440915,-500.0,0.00011369,2]
[352565346,1739171440924,-3088.79,0.00011369,2]
[352565348,1739171440933,-500.0,0.00011369,2]
[352565350,1739171440943,-500.0,0.00011369,2]
[352565352,1739171440952,-500.0,0.00011369,2]
[352565354,1739171440961,-500.0,0.00011369,2]
[352565356,1739171440971,-622.99,0.00011369,2]
[352565358,1739171440981,-500.0,0.00011369,2]
[352565359,1739171440990,-500.0,0.00011369,2]
[352565360,1739171440999,-511.08,0.00011369,2]
[352565361,1739171441008,-499.97634618,0.00011369,2]
[352565362,1739171441017,-500.0,0.00011369,2]
[352565364,1739171441027,-500.0,0.00011369,2]
[352565366,1739171441036,-500.0,0.00011369,2]
[352565368,1739171441046,-622.98,0.00011369,2]
[352565370,1739171441055,-500.0,0.00011369,2]
[352565372,1739171441065,-500.0,0.00011369,2]
[352565374,1739171441074,-710.23,0.00011369,2]
[352565376,1739171441083,-674.73,0.00011369,2]
[352565377,1739171441093,-701.2,0.00011369,2]
[352565380,1739171441103,-500.0,0.00011369,2]
[352565382,1739171441112,-1997.24,0.00011369,2]
[352565384,1739171441122,-500.0,0.00011506,2]
[352565386,1739171441131,-500.0,0.00011506,2]
[352565388,1739171441141,-500.0,0.00011506,2]
[352565390,1739171441150,-500.0,0.00011506,2]
[352565392,1739171441159,-500.0,0.00011506,2]
[352565394,1739171441168,-569.71,0.00011506,2]
[352565396,1739171441178,-5036.88,0.00011506,2]
[352565398,1739171441189,-500.0,0.00011506,2]
[352565400,1739171441198,-500.0,0.00011506,2]
[352565402,1739171441207,-601.44,0.00011506,2]
[352565404,1739171441217,-750.28,0.00011506,2]
[352565406,1739171441226,-500.0,0.00011506,2]
[352565408,1739171441236,-2056.79,0.00011506,2]
[352565410,1739171441245,-500.0,0.00011506,2]
[352565412,1739171441254,-3088.79,0.00011506,2]
[352565414,1739171441264,-193.18,0.00011506,2]
[352565416,1739171441274,-500.0,0.00011506,2]
[352565418,1739171441284,-500.0,0.00011506,2]
[352565420,1739171441294,-500.0,0.00011506,2]
[352565422,1739171441304,-500.0,0.00011506,2]
[352565424,1739171441313,-511.08,0.00011506,2]
[352565426,1739171441323,-500.0,0.00011506,2]
[352565428,1739171441333,-500.0,0.00011506,2]
[352565430,1739171441343,-622.98,0.00011506,2]
[352565432,1739171441352,-500.0,0.00011506,2]
[352565434,1739171441362,-500.0,0.00011506,2]
[352565436,1739171441373,-710.23,0.00011506,2]
[352565438,1739171441383,-674.73,0.00011506,2]
[352565440,1739171441393,-701.2,0.00011506,2]
[352565442,1739171441404,-528.91,0.00011506,2]
[352565444,1739171441414,-1997.24,0.00011506,2]
[352565446,1739171441424,-237.39013587,0.00011543,2]
[352565448,1739171441433,-500.0,0.00011643,2]
[352565450,1739171441443,-500.0,0.00011643,2]
[352565452,1739171441452,-500.0,0.00011643,2]
[352565454,1739171441461,-569.71,0.00011643,2]
[352565456,1739171441470,-5036.88,0.00011643,2]
[352565458,1739171441480,-500.0,0.00011643,2]
[352565460,1739171441489,-500.0,0.00011643,2]
[352565462,1739171441499,-750.28,0.00011643,2]
[352565464,1739171441508,-500.0,0.00011643,2]
[352565466,1739171441518,-2056.79,0.00011643,2]
[352565468,1739171441528,-500.0,0.00011643,2]
[352565470,1739171441537,-3088.79,0.00011643,2]
[352565472,1739171441547,-500.0,0.00011643,2]
[352565474,1739171441557,-500.0,0.00011643,2]
[352565476,1739171441567,-500.0,0.00011643,2]
[352565478,1739171441576,-500.0,0.00011643,2]
[352565480,1739171441586,-511.08,0.00011643,2]
[352565482,1739171441595,-172.88,0.00011643,2]
[352565484,1739171441605,-500.0,0.00011643,2]
[352565486,1739171441615,-622.98,0.00011643,2]
[352565488,1739171441624,-500.0,0.00011643,2]
[352565490,1739171441634,-500.0,0.00011643,2]
[352565492,1739171441647,-710.23,0.00011643,2]
[352565494,1739171441656,-674.73,0.00011643,2]
[352565496,1739171441666,-701.2,0.00011643,2]
[352565498,1739171441675,-1997.24,0.00011643,2]
[352565500,1739171441686,-985.96562688,0.00011655,2]
[352565502,1739171441696,-985.96562688,0.00011755,2]
[352565504,1739171441706,-1790.77585194,0.00011757,2]
[352565506,1739171441715,-349.59,0.0001178,2]
[352565508,1739171441726,-500.0,0.0001178,2]
[352565510,1739171441735,-500.0,0.0001178,2]
[352565512,1739171441745,-569.71,0.0001178,2]
[352565514,1739171441754,-5036.88,0.0001178,2]
[352565516,1739171441764,-500.0,0.0001178,2]
[352565518,1739171441773,-500.0,0.0001178,2]
[352565520,1739171441783,-750.28,0.0001178,2]
[352565522,1739171441793,-500.0,0.0001178,2]
[352565524,1739171441802,-2056.79,0.0001178,2]
[352565526,1739171441812,-500.0,0.0001178,2]
[352565528,1739171441821,-3088.79,0.0001178,2]
[352565530,1739171441831,-500.0,0.0001178,2]
[352565532,1739171441840,-500.0,0.0001178,2]
[352565534,1739171441850,-318.82111763,0.0001178,2]
[352565536,1739171441859,-463.41,0.0001178,2]
[352565538,1739171441869,-511.08,0.0001178,2]
[352565540,1739171441878,-500.0,0.0001178,2]
[352565542,1739171441888,-622.98,0.0001178,2]
[352565544,1739171441898,-500.0,0.0001178,2]
[352565546,1739171441908,-500.0,0.0001178,2]
[352565548,1739171441918,-710.23,0.0001178,2]
[352565550,1739171441927,-674.73,0.0001178,2]
[352565552,1739171441937,-701.2,0.0001178,2]
[352565554,1739171441946,-1997.24,0.0001178,2]
[352565556,1739171441955,-985.96562688,0.00011855,2]
[352565558,1739171441966,-209.66,0.00011917,2]